Cogmind - Beta 15 @@@ ROGUE MODE // 2025.05.09 @ 09:04:16 Player: LFMAC Result: Destroyed by G-34 Mercenary with Small Laser Performance ------------- Evolutions (0) 0 Regions Visited (4) 800 Robots Destroyed (24) 120 Value Destroyed (586) 586 Prototype IDs (23) 460 Alien Tech Used (0) 0 Bonus (300) 300 TOTAL SCORE: 2266 Bonus ------- Aligned with FarCom 300 Cogmind --------- Core Integrity 0/250 Matter 262/300 Energy 265/265 System Corruption 0% Temperature Cool (6) Movement Walking (260) Ox2 Location -9/Mines Parts ------- > --- POWER (1) -------- Improved Ion Engine > --- PROPULSION (2) --- Aluminum Leg Improved Aluminum Leg > --- UTILITY (2) ------ High-capacity Storage Unit Medium Armor Plating > --- WEAPON (2) ------- Autogun Katana > --- INVENTORY (20) --- Ion Engine Ion Engine Aluminum Leg Improved Aluminum Leg Heat Sink High-capacity Storage Unit Sensor Array Improved Terrain Scanner Seismic Detector Modified TNC Melee Analysis Suite Launcher Guidance Computer Propulsion Shielding Utility Shielding Beam Cannon Autogun Peak State ------------ > --- POWER ------------ Ion Engine > --- PROPULSION ------- Light Treads Light Treads > --- UTILITY ---------- Large Storage Unit Medium Armor Plating > --- WEAPON ----------- AWS/Thermal > --- INVENTORY -------- Ion Engine Light Treads Medium Storage Unit Sensor Array Improved Terrain Scanner Seismic Detector Launcher Guidance Computer Propulsion Shielding Utility Shielding Medium Armor Plating Beam Cannon Autogun Grenade Launcher [Rating: 24] Favorites ----------- Power Ion Engine Engine Ion Engine Propulsion Light Treads Treads Light Treads Leg Aluminum Leg Utility Medium Armor Plating Device Shield Generator Storage Small Storage Unit Protection Medium Armor Plating Weapon Autogun Energy Gun Beam Rifle Energy Cannon Beam Cannon Ballistic Gun Autogun Launcher Grenade Launcher Slashing Weapon Katana Special Melee Weapon Datajack Build | -11 -10 -10 -10 -9 ------- Run | Yrd Mat Min Exi Min Slots Evolved . | . . . . . Power . | . . . . . Propulsion . | . . . . . Utility . | . . . . . Weapon . | . . . . . Parts Attached 27 | 6 7 4 5 5 Power 2 | 1 . . . 1 Engine 2 | 1 . . . 1 Core . | . . . . . Reactor . | . . . . . Propulsion 5 | 2 . 1 . 2 Treads 3 | 2 . 1 . . Leg 2 | . . . . 2 Wheel . | . . . . . Hover . | . . . . . Flight . | . . . . . Utility 10 | 1 3 2 3 1 Device 2 | . 1 . 1 . Storage 5 | 1 1 1 2 . Processor . | . . . . . Hackware . | . . . . . Protection 3 | . 1 1 . 1 Artifact . | . . . . . Weapon 10 | 2 4 1 2 1 Energy Gun 3 | 1 1 . 1 . Energy Cannon 1 | . 1 . . . Ballistic Gun 3 | 1 2 . . . Ballistic Cannon . | . . . . . Launcher 1 | . . 1 . . Special Weapon . | . . . . . Impact Weapon . | . . . . . Slashing Weapon 1 | . . . . 1 Piercing Weapon . | . . . . . Special Melee Weapon 1 | . . . 1 . Unidentified Prototypes . | . . . . . Parts Lost 8 | . 1 1 . 6 Power . | . . . . . Propulsion 2 | . . . . 2 Utility 3 | . 1 1 . 1 Weapon 3 | . . . . 3 Highest Loss Streak 3 | . 1 1 . 3 To Critical Strikes . | . . . . . Average Backups 11 | 4 7 11 14 15 Power 1 | . 1 1 1 1 Propulsion 1 | 2 2 . 1 1 Utility 5 | . 1 6 8 9 Weapon 3 | 1 3 3 3 3 Tool/Special . | . . . . . Unused Backups 27 | . 9 . 2 16 Power 3 | . . . 1 2 Propulsion 6 | . 4 . . 2 Utility 14 | . 3 . 1 10 Weapon 4 | . 2 . . 2 Tool/Special . | . . . . . Average Slot Usage (%) 98 | . 98 100 99 93 Engine 14 | . 14 14 14 14 Treads 26 | . 28 28 28 13 Leg 1 | . . . . 8 Device 3 | . 8 2 . . Storage 14 | . 14 14 14 14 Protection 9 | . 4 11 14 14 Energy Gun 4 | . 11 . . . Energy Cannon 6 | . 2 6 10 10 Ballistic Gun 10 | . 13 14 3 13 Launcher 2 | . . 7 1 . Special Melee Weapon 3 | . . . 12 . Peak Build Rating 24 | 6 11 11 24 16 Average Rating 10 | 4 10 10 10 12 On Entrance 7 | . 6 10 11 10 Naked Turns . | . . . . . Heaviest Build 60 | 13 23 38 56 60 Greatest Support 40 | 40 40 40 40 40 Greatest Overweight (x) 5 | . . . 1 5 Average Overweight (x) . | . . . . 1 Largest Inventory Capacity 20 | 8 10 15 20 20 Average Capacity 13 | 7 8 13 17 20 Most Carried 17 | 8 10 14 16 17 Average Carried 11 | 5 7 11 14 15 Final Capacity 20 | 8 10 15 20 20 Final Carried 16 | 6 10 14 15 16 Class Distribution -------------------- 99% | Mutant Dominant Class ---------------- Mutant | -10/Materials Mutant | -10/Mines Mutant | -10/Exiles Mutant | -9/Mines Resources | -11 -10 -10 -10 -9 ----------- Run | Yrd Mat Min Exi Min Matter Collected 1027 | 167 297 200 90 273 Remotely . | . . . . . Salvage Created 845 | . 411 225 . 209 Parts 53 | . 20 17 . 16 Haulers Intercepted 2 | . 2 . . . Recyclers Shooed . | . . . . . Parts Field Recycled . | . . . . . Retrieved Matter . | . . . . . Parts Self-Destructed . | . . . . . Prevented . | . . . . . Kills | -11 -10 -10 -10 -9 ------- Run | Yrd Mat Min Exi Min Combat Hostiles Destroyed 22 | . 7 9 . 6 Guns 16 | . 7 5 . 4 Cannons 6 | . . 4 . 2 Classes Destroyed 6 | . 4 1 . 1 Hauler 2 | . 2 . . . Watcher 2 | . 2 . . . Swarmer 8 | . 2 6 . . Grunt 11 | . 5 2 . 4 Duelist 1 | . . . . 1 Assembled 2 | . . 1 . 1 Best Kill Streak 4 | . 2 4 . 3 Combat Bots Only 4 | . 2 4 . 3 Max Kills in Single Turn 1 | . 1 1 . 1 Gunslinging . | . . . . . Exploded . | . . . . . Melee . | . . . . . Uniques/NPCs Destroyed . | . . . . . Combat | -11 -10 -10 -10 -9 -------- Run | Yrd Mat Min Exi Min Hostile Shots Fired 136 | . 35 57 . 44 Missed 37 | . 8 16 . 13 Hits 99 | . 27 41 . 31 Melee 5 | . . . . 5 Projectile 94 | . 27 41 . 26 Damage Taken 1312 | . 362 382 . 568 Core 250 | . 47 61 . 142 Absorbed by Shields 45 | . 15 30 . . Core Remaining (%) 100 | 100 . . . . Volleys Fired 107 | . 39 29 . 39 Largest 2 | . 2 2 . 2 Hottest 83 | . 79 83 . 83 Shots Fired 197 | . 78 58 . 61 Gun 146 | . 78 29 . 39 Cannon 45 | . . 27 . 18 Launcher 6 | . . 2 . 4 Special . | . . . . . Kinetic 107 | . 39 29 . 39 Thermal 84 | . 39 27 . 18 Explosive 6 | . . 2 . 4 Electromagnetic . | . . . . . Robot Hit Streak 11 | . 8 4 . 11 Robot Miss Streak 5 | . 5 5 . 1 Penetration Max . | . . . . . Secondary Targets 1 | . 1 . . . Max Gunslinging Chain 1 | . 1 . . . Shots Hit Robots 105 | . 48 26 . 31 Core Hits 37 | . 16 12 . 9 Critical Kills 1 | . . . . 1 Critical Parts Destroyed . | . . . . . Critical Strikes 3 | . 1 . . 2 Burn 1 | . 1 . . . Destroy 1 | . . . . 1 Sever 1 | . . . . 1 Melee Attacks 3 | . . . . 3 Impact . | . . . . . Slashing 3 | . . . . 3 Piercing . | . . . . . Sneak Attacks . | . . . . . Combat Hostiles . | . . . . . Follow-up Attacks . | . . . . . Damage Inflicted 1694 | . 689 465 . 540 Guns 1218 | . 689 221 . 308 Cannons 299 | . . 213 . 86 Explosions 76 | . . 31 . 45 Melee 101 | . . . . 101 Ramming . | . . . . . Kinetic 845 | . 316 221 . 308 Thermal 672 | . 373 213 . 86 Explosive 76 | . . 31 . 45 Electromagnetic . | . . . . . Impact . | . . . . . Slashing 101 | . . . . 101 Piercing . | . . . . . Highest Corruption . | . . . . . Average Corruption . | . . . . . Corruption Purged . | . . . . . Corruption Blocked . | . . . . . Overload Shots . | . . . . . Overflow Damage 12 | . . . . 12 Projectiles . | . . . . . Explosions 12 | . . . . 12 Melee . | . . . . . Knockbacks . | . . . . . Impact . | . . . . . Kinetic . | . . . . . Secondary . | . . . . . Self-Inflicted Damage 125 | . . . . 125 Shots 4 | . . . . 4 Rammed . | . . . . . Targets Rammed . | . . . . . Kicked . | . . . . . Crushed . | . . . . . Highest Temperature 345 | . 223 345 . 334 Average Temperature 107 | . 84 122 . 123 Received Heat Transfer 387 | . 165 66 . 156 Effects 3 | . . 2 . 1 Interference 2 | . . 2 . . Matter Decay 1 | . . . . 1 Siege Activations . | . . . . . Martial Activations . | . . . . . Shielding Activations . | . . . . . Robots Disrupted . | . . . . . Combat Hostiles . | . . . . . Robots Corrupted . | . . . . . Combat Hostiles . | . . . . . Parts Fried . | . . . . . Impact Corruptions . | . . . . . Robots Melted . | . . . . . Combat Hostiles . | . . . . . Parts Melted 4 | . 3 1 . . Heat Transferred 1665 | . 1036 444 . 185 Parts Sabotaged . | . . . . . Parts Stolen . | . . . . . Parts Stripped . | . . . . . Power Chain Reactions . | . . . . . Alert | -11 -10 -10 -10 -9 ------- Run | Yrd Mat Min Exi Min Maximum Alert Level . | . . . . . Low Security (%) 100 | 100 100 100 . 100 Level 1 . | . . . . . Level 2 . | . . . . . Level 3 . | . . . . . Level 4 . | . . . . . Level 5 . | . . . . . High Security . | . . . . . Max Security . | . . . . . Peak Influence 80 | . 65 80 . 60 Initial . | . . . . . Average 10 | . 10 13 . 8 Influence Increases 585 | . 256 207 . 122 Destroy 0b10 Robot/C 400 | . 140 160 . 100 Destroy 0b10 Robot/NC 30 | . 20 10 . . Destroy Leader 88 | . 48 30 . 10 Disable Machine 15 | . 15 . . . Destroy Structure 22 | . 3 7 . 12 Lose Combat Pursuer 30 | . 30 . . . Influence Decreases 561 | . 256 207 . 98 Time Decay 539 | . 256 197 . 86 Lost Part 22 | . . 10 . 12 Squads Dispatched 1 | . 1 . . . Investigation 1 | . 1 . . . Extermination . | . . . . . Reinforcement . | . . . . . Assault . | . . . . . Garrison . | . . . . . Intercept . | . . . . . Searches Triggered . | . . . . . Construction Impeded . | . . . . . Haulers Reinforced . | . . . . . Active Scanning Responses . | . . . . . Cargo Convoy Interrupts . | . . . . . Stealth | -11 -10 -10 -10 -9 --------- Run | Yrd Mat Min Exi Min Distress Signals 2 | . . . . 2 Communications Jammed . | . . . . . Distress Signals . | . . . . . Times Spotted 29 | . 13 9 . 7 Peak Tracking Total 3 | . 3 3 . 3 Tactical Retreats 2 | . 2 . . . Traps | -11 -10 -10 -10 -9 ------- Run | Yrd Mat Min Exi Min Traps Triggered 2 | . 2 . . . Indirectly . | . . . . . Trap Hack Attempts . | . . . . . Triggered . | . . . . . Disarmed . | . . . . . Reprogrammed . | . . . . . Reused . | . . . . . Traps Extracted . | . . . . . Installed . | . . . . . Triggered . | . . . . . Machines | -11 -10 -10 -10 -9 ---------- Run | Yrd Mat Min Exi Min Machines Disabled 1 | . 1 . . . Max in Single Turn 1 | . 1 . . . Machines Repaired . | . . . . . Machines Dismantled . | . . . . . Machines Sabotaged . | . . . . . Overloaded Fab Kills . | . . . . . Hacking | -11 -10 -10 -10 -9 --------- Run | Yrd Mat Min Exi Min Machines Accessed 7 | . 2 . 5 . Terminals 1 | . 1 . . . Fabricators . | . . . . . Repair Stations . | . . . . . Recycling Units 1 | . 1 . . . Scanalyzers . | . . . . . Garrison Access . | . . . . . Total Hacks 53 | . 3 . 50 . Successful 51 | . 1 . 50 . Failed 2 | . 2 . . . Catastrophic . | . . . . . Database Lockouts . | . . . . . Manual 3 | . 2 . 1 . Terminals 2 | . 2 . . . Fabricators . | . . . . . Repair Stations . | . . . . . Recycling Units 1 | . 1 . . . Scanalyzers . | . . . . . Garrison Access . | . . . . . Terminal Hacks 50 | . . . 50 . Record 49 | . . . 49 . Proto ID Catalog 1 | . . . 1 . Fabricator Hacks . | . . . . . Repair Station Hacks . | . . . . . Recycling Unit Hacks 1 | . 1 . . . Report Inventory 1 | . 1 . . . Scanalyzer . | . . . . . Garrison Access Hacks . | . . . . . Unauthorized Hacks . | . . . . . Terminals . | . . . . . Fabricators . | . . . . . Repair Stations . | . . . . . Recycling Units . | . . . . . Scanalyzers . | . . . . . Garrison Access . | . . . . . Data Cores Recovered 1 | . 1 . . . Used . | . . . . . Hacking Detections . | . . . . . Full Trace Events . | . . . . . Feedback Events . | . . . . . Feedback Blocked . | . . . . . Robot Schematics Acquired . | . . . . . Robots Built . | . . . . . Authchips . | . . . . . Time . | . . . . . Total Robot Build Rating . | . . . . . Part Schematics Acquired . | . . . . . Parts Built . | . . . . . Authchips . | . . . . . Time . | . . . . . Total Part Build Rating . | . . . . . Parts Repaired . | . . . . . Time . | . . . . . Parts Recycled . | . . . . . Recycled Matter . | . . . . . Retrieved Matter . | . . . . . Retrieved Components . | . . . . . Parts Scanalyzed . | . . . . . Part Schematics Acquired . | . . . . . Parts Damaged . | . . . . . Bothacking | -11 -10 -10 -10 -9 ------------ Run | Yrd Mat Min Exi Min Used RIF Installer . | . . . . . Robots Hacked . | . . . . . Non-combat . | . . . . . Combat . | . . . . . Robot Hacks Applied . | . . . . . Relay Couplers Released . | . . . . . Fabnet Peak Effective % . | . . . . . Robots Rewired . | . . . . . Allies Hacked . | . . . . . Hacks Repelled . | . . . . . Allies | -11 -10 -10 -10 -9 -------- Run | Yrd Mat Min Exi Min Total Allies 2 | . . 2 . . Largest Group 2 | . . 2 2 . Highest-Rated Group 39 | . . 39 39 . Highest-Rated Ally 31 | . . 31 31 . Total Orders . | . . . . . Ally Attacks . | . . . . . Total Damage . | . . . . . Kills . | . . . . . Allies Corrupted . | . . . . . Allies Melted . | . . . . . Intel | -11 -10 -10 -10 -9 ------- Run | Yrd Mat Min Exi Min Active Infowar (turns) . | . . . . . Robot Analysis Total . | . . . . . Derelict Logs Recovered . | . . . . . Drone Launches . | . . . . . Drone Recoveries . | . . . . . Exploration | -11 -10 -10 -10 -9 ------------- Run | Yrd Mat Min Exi Min Turns Passed 4966 | 80 1758 1043 1456 629 Spaces Moved 2472 | 45 973 583 728 143 Core 8 | 8 . . . . Treads 2417 | 37 973 583 728 96 Legs 47 | . . . . 47 Wheels . | . . . . . Hover . | . . . . . Flight . | . . . . . Fastest Speed 50 | 50 160 160 160 240 Average Speed 176 | 140 160 160 195 272 Slowest Speed 470 | 160 160 160 240 470 Overloaded Moves . | . . . . . Propulsion Burnouts . | . . . . . Robots Hopped . | . . . . . Potential Cave-ins . | . . . . . Cave-ins Triggered . | . . . . . Exploration Rate (%) 61 | 4 98 95 94 17 Regions Visited 4 Branch Regions 3 Pre-discovered Areas 1 | . . . 1 . Known Exits Taken . | . . . . . Unknown Exits Taken 4 | 1 1 1 1 . Scrap Searched 1 | . . 1 . . Spaces Dug 5 | . . . . 5 Terrain Destroyed 28 | . . 16 . 12 Melee . | . . . . . Projectile . | . . . . . AOE 28 | . . 16 . 12 Terrain Rammed . | . . . . . Walls Destroyed . | . . . . . Machines Disabled . | . . . . . Actions | -11 -10 -10 -10 -9 --------- Run | Yrd Mat Min Exi Min Total 2902 | 61 1111 640 766 324 Wait 193 | . 59 19 . 115 Move 2468 | 44 972 582 727 143 Hop . | . . . . . Pick Up 57 | 11 19 5 12 10 Fast Attach 2 | 1 . . 1 . Attach 24 | 5 6 1 5 7 Detach 1 | . . . 1 . Swap 12 | . 2 3 3 4 Drop 31 | . 14 . 14 3 Fire 107 | . 39 29 . 39 Melee 3 | . . . . 3 Ram . | . . . . . Kick . | . . . . . Crush . | . . . . . Escape Stasis . | . . . . . Rewire 4 | . . 1 3 . Trap . | . . . . . Miscellaneous . | . . . . . Route ------- -11/Scrapyard -10/Materials (discovered 4 exits: [*Mat x3] / [*Min]) -10/Mines (discovered 3 exits: [*Mat x2] / *Exi) -10/Exiles (discovered 2 exits: [*Min x2]) -9/Mines History --------- Turn | Location | Event 21 | -11/Scrapyard | Discovered new exit (range 15) 81 | -11/Scrapyard | Entered Materials 82 | -10/Materials | Met a group of wandering Federalists 169 | -10/Materials | Discovered new exit (range 16) 308 | -10/Materials | Build established: Mutant 478 | -10/Materials | Discovered new exit (range 13) 600 | -10/Materials | Discovered new exit (range 15) 886 | -10/Materials | Discovered new exit (range 15) 1839 | -10/Materials | Entered Mines 1977 | -10/Mines | Discovered new exit (range 11) 2192 | -10/Mines | Assembled infested the area 2458 | -10/Mines | Discovered new exit (range 14) 2875 | -10/Mines | Deemed a non-threat by the Exiles lab entrance 2875 | -10/Mines | Discovered new exit (range 5) 2882 | -10/Mines | Entered Exiles 2882 | -10/Exiles | Accompanied by 2 allies 2912 | -10/Exiles | Led the pair of lost Derelicts to a safe place 2934 | -10/Exiles | Discovered new exit (range 15) 2978 | -10/Exiles | Met 8R-AWN 3008 | -10/Exiles | Met EX-HEX 3131 | -10/Exiles | Met EX-BIN 3155 | -10/Exiles | Aligned with FarCom system 3156 | -10/Exiles | Given EX-Vault access code 3206 | -10/Exiles | Opened EX-Vault 3217 | -10/Exiles | Found Modified TNC 3253 | -10/Exiles | Found Supersonic Drone Bay 3277 | -10/Exiles | Found AWS/Thermal 3365 | -10/Exiles | Warned to stay clear of 0b10 Research branches 3442 | -10/Exiles | Met EX-DEC 3682 | -10/Exiles | Learned location of Zion (-7) 3837 | -10/Exiles | Visited The Gauntlet 4297 | -10/Exiles | Discovered new exit (range 14) 4338 | -10/Exiles | Left Exiles lab with Modified TNC 4338 | -10/Exiles | Entered Mines 4357 | -9/Mines | Core integrity fell below 50% 4513 | -9/Mines | Excavation squad dispatched 4513 | -9/Mines | A large section of the Mines collapsed 4539 | -9/Mines | Core integrity fell below 20% 4567 | -9/Mines | Lost 3 parts (1n1u1w) 4763 | -9/Mines | Excavation squad dispatched 4967 | -9/Mines | Destroyed by G-34 Mercenary with Small Laser Last Messages --------------- 04719_ U-05 Engineer builds a Wall. 04721_ T-07 Excavator is excavating. 04723_ U-05 Engineer lays Concrete. 04760_ Acquired Aluminum Leg. 04763_ ALERT: Derelict activity in mines confirmed. Dispatching additional escorted excavation squad. 04776_ Dropped Lgt. Treads. 04777_ Acquired Imp. Aluminum Leg. 04784_ Acquired Aluminum Leg. 04785_ Acquired 34 matter. 04790_ Acquired 64 matter. 04798_ Acquired Ion Engine. 04804_ Acquired Heat Sink. 04910_ K-01 Serf collects debris. 04916_ Beam Cannon destroyed. 04918_ G-34 Mercenary destroyed. 04925_ Acquired 47 matter. 04948_ G-34 Mercenary destroyed. 04953_ Acquired 38 matter. 04964_ G-34 Mercenary Aluminum Leg severed. Map ----- +----------------------------------------------------+ | | | | | | | | | | | | | | | | | | | | | | | | | | | | | ???????????????????????????????? | | ???????????????????????????????? | | ????????????????????####???????? | | ?????????????#####?## ##??????? | | ????????????## ### #??????? | | ????????????# ##?????? | | ????????????# ##????? | | ????????????# #????? | | ?????????????# t #?????? | | ?????????????## ## #?????? | | ??????????????# ### ####??? | | ??????????????# #?#= @g[#??? | | ??????######### #?##### #??? | | ???# #?????#!#??? | | ??????######## ##????# #??? | | ?????????????## ######???# #??? | | ??????????????#### # ##?### #??? | | ????????????????# g #### #??? | | ????????????????## ## *##?? | | ???????????###?### # [ =##? | | ??????????## ### ## [ #? | | ?????????##" " ### * #? | | ???????### # ## ##? | | ???????# " " ### ##?? | | ?????# ### ##?# ##??? | | ????? ???#### #### ##???? | | ????? ???????## ## #????? | | ????? ?????????# ##????? | | ????????????????# ###?????? | | ????????????????# # ##???????? | | ????????????????## ##????????? | | ?????????????????#####?????????? | | ???????????????????????????????? | | ???????????????????????????????? | | ???????????????????????????????? | | ???????????????????????????????? | +----------------------------------------------------+ Best States ------------- Heat Dissipation 25 Energy Generation 12 Energy Capacity 265 Matter Stores 300 Matter Capacity 300 Sight Range 16 Terrain Scan Density 10 Armor Coverage 225 Evasion (%) 50 Recoil Reduction 2 Item Schematics ----------------- None Robot Schematics ------------------ None Fabricated ------------ Nothing Repaired ---------- Nothing Alien Tech Used ----------------- None Achievements -------------- I Survived The Infestation Challenges ------------ None Game ------ Seed WarlordDecoyAccelerator Manual? 0 Play Time 00:53:45 Cumulative 33.4 hours Start 2025.05.09 @ 08:07:00 End 2025.05.09 @ 09:04:16 Sessions 1 Manual Loads 0 Difficulty Rogue Special Mode None Game No. 20 Rogue 20 Adventurer 0 Explorer 0 Win Type - Total 0 Types 0/0/0/0/0/0/0/0/0/0 Lore% 11 Gallery% 26 Achievement% 20 Wizard Run 0 Options --------- Layout 1 ASCII 0 Keyboard 0 Movement Numpad Keybinds 0 Fullscreen 0 Font 20/Terminus Map View 64x42 Zoom Use 0% Tactical HUD 1 Map Filters NONE Filters NONE Steam 1 RUN: ba1128eb-c776-4421-8270-e4f3fb03e68c